bitfinex-derivatives/quotes_BTCF0:USTF0_20250208
["timestamp","ask_amount","ask_price","bid_price","bid_amount"]
[1739016172019,0.2078252,96238.0,96237.0,0.3608]
[1739016172212,0.2078131,96244.0,96237.0,0.5686267]
[1739016172418,0.2078152,96243.0,96238.0,0.314]
[1739016172727,0.2078152,96243.0,96240.0,0.2078194]
[1739016174211,0.2078152,96243.0,96238.0,0.4784]
[1739016174212,0.2078224,96239.0,96238.0,0.002]
[1739016175428,0.2078259,96238.0,96237.0,0.3608]
[1739016176319,0.2078259,96238.0,96237.0,0.37133815]
[1739016177129,0.2078259,96238.0,96237.0,0.37333815]
[1739016180833,0.18644214,96241.0,96237.0,0.37333815]
[1739016181136,0.18644214,96241.0,96238.0,0.2078253]
[1739016181927,0.39426234,96241.0,96238.0,0.2078253]
[1739016182435,0.39426234,96241.0,96238.0,0.2088253]
[1739016182831,0.2078231,96240.0,96238.0,0.001]
[1739016183428,0.2078231,96240.0,96238.0,0.002]
[1739016185540,0.2078062,96248.0,96244.0,0.2078129]
[1739016185835,0.2078062,96248.0,96247.0,0.3608]
[1739016186837,0.2078062,96248.0,96247.0,0.43108]
[1739016187038,0.2077906,96255.0,96247.0,0.43208]
[1739016187231,0.2077926,96254.0,96247.0,0.43208]
[1739016188138,0.2077979,96253.0,96247.0,0.43208]
[1739016188844,0.2077979,96253.0,96247.0,0.43308]
[1739016189027,0.2078069,96249.0,96247.0,0.3628]
[1739016189226,0.2078069,96249.0,96247.0,0.37111561]
[1739016189432,0.2078069,96249.0,96247.0,0.37311561]
[1739016190936,0.162,96248.0,96247.0,0.37311561]
[1739016191333,0.2078069,96249.0,96247.0,0.37311561]
[1739016191528,0.07634081,96253.0,96247.0,0.37211561]
[1739016191840,0.07634081,96253.0,96247.0,0.37311561]
[1739016192231,0.07634081,96253.0,96251.0,0.2078001]
[1739016192431,0.07634081,96253.0,96252.0,0.1644]
[1739016193031,0.07634081,96253.0,96252.0,1.6644]
[1739016193441,0.07634081,96253.0,96252.0,0.1644]
[1739016195242,0.2077927,96255.0,96252.0,0.1644]
[1739016195431,0.2077927,96255.0,96252.0,0.1664]
[1739016196042,0.24867633,96256.0,96252.0,0.3741974]
[1739016196242,0.24867633,96256.0,96255.0,0.3608]
[1739016196841,0.24867633,96256.0,96252.0,0.002]
[1739016197043,0.2077962,96253.0,96252.0,0.002]
[1739016197736,0.2077962,96253.0,96252.0,0.001]
[1739016197942,0.2077962,96253.0,96252.0,0.002]
[1739016198744,0.2077867,96258.0,96255.0,0.001]
[1739016198935,0.2077867,96258.0,96256.0,0.1521]
[1739016199136,0.2077867,96258.0,96256.0,1.6521]
[1739016200543,0.2077867,96258.0,96256.0,0.1531]
[1739016201846,0.2077867,96258.0,96256.0,0.1541]
[1739016204840,0.2077867,96258.0,96256.0,0.002]
[1739016207750,0.2077867,96258.0,96256.0,0.2097894]
[1739016210648,0.207774,96264.0,96260.0,0.2077793]
[1739016210849,0.207774,96264.0,96261.0,1.5]
[1739016211043,0.2077755,96263.0,96260.0,0.2077793]
[1739016211749,0.2077755,96263.0,96260.0,0.2087793]
[1739016212148,0.2077755,96263.0,96260.0,0.2097793]
[1739016212345,0.2077755,96263.0,96262.0,0.2077768]
[1739016212954,0.21795465,96264.0,96262.0,0.2077768]
[1739016213156,0.21795465,96264.0,96263.0,0.3608]
[1739016213750,0.21795465,96264.0,96263.0,0.5211]
[1739016215258,0.21795465,96264.0,96263.0,0.3608]
[1739016215455,0.2077709,96265.0,96263.0,0.3618]
[1739016216149,0.2077709,96265.0,96263.0,0.3628]
[1739016218947,0.2077709,96265.0,96264.0,4e-05]
[1739016220756,0.2077709,96265.0,96264.0,0.00104]
[1739016220961,0.2077709,96265.0,96264.0,0.00204]
[1739016227363,0.5685709,96265.0,96264.0,0.00204]
[1739016228655,0.64491284,96265.0,96264.0,0.00204]
[1739016231562,0.28411284,96265.0,96264.0,0.00204]
[1739016241572,0.2077709,96265.0,96264.0,0.00204]
[1739016246971,0.28411027,96265.0,96264.0,0.00204]
[1739016256786,0.56478591,96265.0,96264.0,0.00204]
[1739016263592,0.28411027,96265.0,96264.0,0.00204]
[1739016266387,0.2077709,96265.0,96264.0,0.00204]
[1739016267783,0.28059375,96271.0,96264.0,0.00204]
[1739016267984,0.28059375,96271.0,96270.0,0.3608]
[1739016268192,0.28059375,96271.0,96270.0,0.36084]
[1739016269881,0.2077536,96273.0,96270.0,0.36084]
[1739016270080,0.2077536,96273.0,96271.0,0.1666]
[1739016270280,0.2077536,96273.0,96272.0,4e-05]
[1739016271378,0.24933179,96274.0,96272.0,4e-05]
[1739016271691,0.24933179,96274.0,96273.0,4e-05]
[1739016273286,0.24933179,96274.0,96273.0,0.00104]
[1739016273689,0.24933179,96274.0,96273.0,0.00204]
[1739016275292,0.24933179,96274.0,96273.0,0.01230162]
[1739016276793,0.21805035,96277.0,96273.0,0.01230162]
[1739016277192,0.21805035,96277.0,96276.0,4e-05]
[1739016278791,0.21805035,96277.0,96276.0,0.00104]
[1739016279799,0.21805035,96277.0,96276.0,0.00204]
[1739016280297,0.29438972,96277.0,96276.0,0.00204]
[1739016282797,0.44888972,96277.0,96276.0,0.00204]
[1739016285192,0.80968972,96277.0,96276.0,0.00204]
[1739016286303,0.65518972,96277.0,96276.0,0.00204]
[1739016286592,0.81588972,96277.0,96276.0,0.00204]
[1739016290203,0.45508972,96277.0,96276.0,0.00204]
[1739016290407,0.81588972,96277.0,96276.0,0.00204]
[1739016290702,0.911564,96277.0,96276.0,0.00204]
[1739016293704,0.750864,96277.0,96276.0,0.00204]
[1739016293900,0.53281365,96277.0,96276.0,0.00204]
[1739016296103,0.43713937,96277.0,96276.0,0.00204]
[1739016297295,0.07633937,96277.0,96276.0,0.00204]
[1739016300208,0.28059375,96282.0,96276.0,0.00204]
[1739016300704,0.28059375,96282.0,96281.0,4e-05]
[1739016302616,0.28059375,96282.0,96281.0,0.00104]
[1739016302812,0.28059375,96282.0,96281.0,0.00204]
[1739016304315,0.07633937,96282.0,96281.0,0.00204]
[1739016306211,0.07633937,96282.0,96281.0,0.00104]
[1739016306607,0.07633937,96282.0,96281.0,0.00204]
[1739016308108,0.2077337,96282.0,96281.0,0.00204]
[1739016317923,0.57872378,96289.0,96281.0,0.00204]
[1739016318115,0.11566477,96289.0,96282.0,0.2077337]
[1739016318424,0.11566477,96289.0,96288.0,4e-05]
[1739016319722,0.11566477,96289.0,96288.0,0.00104]
[1739016321611,0.11566477,96289.0,96288.0,0.01247345]
[1739016321823,0.11566477,96289.0,96288.0,0.00204]
[1739016322612,0.2077126,96292.0,96288.0,0.00204]
[1739016323020,0.2077126,96292.0,96291.0,4e-05]
[1739016323722,0.24905575,96296.0,96291.0,4e-05]
[1739016324027,0.24905575,96296.0,96295.0,4e-05]
[1739016326915,0.32536579,96299.0,96295.0,0.00104]
[1739016327316,0.32536579,96299.0,96298.0,4e-05]
[1739016328822,0.32536579,96299.0,96298.0,0.00104]
[1739016329319,0.32536579,96299.0,96298.0,0.00204]
[1739016330013,0.32536579,96299.0,96298.0,0.01237205]
[1739016330420,0.1,96300.0,96298.0,0.01237205]
[1739016331323,0.1,96300.0,96299.0,4e-05]
[1739016332422,0.3076948,96300.0,96299.0,4e-05]
[1739016332621,0.6684948,96300.0,96299.0,4e-05]
[1739016333612,0.6684948,96300.0,96280.0,0.1703]
[1739016333613,0.6684948,96300.0,96280.0,0.09947013]
[1739016333834,0.2077358,96282.0,96280.0,0.09947013]
[1739016334121,0.2077779,96281.0,96272.0,0.09962593]
[1739016334522,4e-05,96273.0,96272.0,0.09962593]
[1739016334732,4e-05,96273.0,96272.0,0.0001558]
[1739016335725,4e-05,96273.0,96272.0,0.0104729]
[1739016335925,4e-05,96273.0,96272.0,0.0001558]
[1739016336534,0.00104,96273.0,96272.0,0.0001558]
[1739016336722,0.00104,96273.0,96272.0,0.0021558]
[1739016337429,0.00104,96273.0,96272.0,0.0001558]
[1739016337430,0.00204,96273.0,96272.0,0.0001558]
[1739016338329,0.00204,96273.0,96272.0,1.5001558]
[1739016341522,0.00204,96273.0,96272.0,0.0001558]
[1739016344426,0.00204,96273.0,96272.0,0.3609558]
[1739016346735,0.00204,96273.0,96272.0,0.0001558]
[1739016351733,0.00204,96273.0,96272.0,1e-08]
[1739016354641,0.13860319,96273.0,96272.0,1e-08]
[1739016358951,0.07838318,96273.0,96272.0,1e-08]
[1739016359938,0.07838318,96273.0,96272.0,1.50000001]
[1739016360342,0.07838318,96273.0,96272.0,1e-08]
[1739016361448,0.07838318,96273.0,96272.0,0.36080001]
[1739016361745,0.095691,96276.0,96273.0,0.2077531]
[1739016362340,0.095691,96276.0,96274.0,0.2077491]
[1739016362547,0.00015542,96282.0,96279.0,0.2077384]
[1739016362738,0.00015542,96282.0,96281.0,0.3608]
[1739016363741,0.00115542,96282.0,96281.0,0.3608]
[1739016365243,0.00015542,96282.0,96281.0,0.3608]
[1739016367342,0.2077057,96295.0,96286.0,0.2077236]
[1739016367552,0.2077089,96294.0,96286.0,0.2077236]
[1739016367742,0.2077089,96294.0,96286.0,0.3696236]
[1739016367945,0.2077089,96294.0,96287.0,0.1689]
[1739016369440,0.2077089,96294.0,96287.0,0.1699]
[1739016370142,0.2077122,96292.0,96287.0,0.1709]
[1739016370548,0.2077122,96292.0,96287.0,0.18135199]
[1739016370846,0.2077171,96290.0,96287.0,0.18135199]
[1739016371047,0.2077191,96289.0,96287.0,0.18135199]
[1739016372049,0.2077191,96289.0,96287.0,0.18035199]
[1739016372248,0.2077191,96289.0,96287.0,0.18135199]
[1739016372646,0.2077191,96289.0,96287.0,0.18035199]
[1739016373152,0.2077191,96289.0,96287.0,0.17935199]
[1739016373341,0.2077191,96289.0,96287.0,0.38807469]
[1739016373956,0.2077191,96289.0,96288.0,1.5]
[1739016374351,0.2077058,96295.0,96288.0,0.2077189]
[1739016374648,0.2077058,96295.0,96289.0,0.2077171]
[1739016374855,0.2077058,96295.0,96290.0,1.5]
[1739016376050,0.2077058,96295.0,96290.0,1.501]
[1739016376250,0.1,96300.0,96290.0,1.501]
[1739016376449,0.1,96300.0,96295.0,0.2077054]
[1739016377152,0.1,96300.0,96290.0,1.86232]
[1739016377353,0.1,96300.0,96297.0,0.2076998]
[1739016377554,0.1,96300.0,96298.0,0.1572]
[1739016377751,0.1,96300.0,96298.0,0.3648981]
[1739016378143,0.1,96300.0,96298.0,0.7256981]
[1739016379151,0.3608,96306.0,96300.0,0.2076935]
[1739016379555,0.3608,96306.0,96298.0,0.52]
[1739016379857,0.3608,96306.0,96304.0,0.2076857]
[1739016380155,0.24909575,96317.0,96304.0,0.2076857]
[1739016380156,0.24909575,96317.0,96305.0,0.1598]
[1739016380549,0.24909575,96317.0,96305.0,0.3249]
[1739016381256,0.2076678,96313.0,96305.0,0.3249]
[1739016381652,0.2076678,96313.0,96305.0,0.3259]
[1739016382951,0.2076678,96313.0,96305.0,0.3269]
[1739016383759,0.2076678,96313.0,96305.0,0.3259]
[1739016383955,0.2076678,96313.0,96305.0,0.3269]
[1739016386363,0.2076692,96312.0,96305.0,0.3269]
[1739016386549,4e-05,96317.0,96305.0,0.3269]
[1739016386752,0.2076716,96311.0,96305.0,0.3269]
[1739016388153,0.2076716,96311.0,96305.0,0.3259]
[1739016388354,0.2076716,96311.0,96305.0,0.3269]
[1739016390558,0.2076733,96310.0,96305.0,0.3269]
[1739016391257,0.24905575,96307.0,96305.0,0.3269]
[1739016391657,0.24905575,96307.0,96305.0,0.3259]
[1739016391873,0.24905575,96307.0,96305.0,0.3269]
[1739016393970,0.07630177,96306.0,96305.0,0.3269]
[1739016394171,0.07630177,96306.0,96305.0,0.3259]
[1739016394463,0.07630177,96306.0,96305.0,0.3269]
[1739016394962,0.07630177,96306.0,96305.0,0.3259]
[1739016395467,0.07630177,96306.0,96305.0,0.3269]
[1739016395861,0.07630177,96306.0,96305.0,0.002]
[1739016397069,0.2076815,96307.0,96305.0,0.002]
[1739016398071,0.2076815,96307.0,96305.0,0.001]
[1739016398273,0.2076815,96307.0,96305.0,0.002]
[1739016401865,0.3608,96312.0,96305.0,0.002]
[1739016402072,0.2076764,96309.0,96305.0,0.002]
[1739016402261,0.2076811,96307.0,96305.0,0.002]
[1739016404868,0.2076811,96307.0,96305.0,0.001]
[1739016405275,0.2076811,96307.0,96305.0,0.002]
[1739016405574,0.1697,96306.0,96305.0,0.002]
[1739016407175,0.2076811,96307.0,96305.0,0.002]
[1739016407570,0.2076811,96307.0,96305.0,0.003]
[1739016408572,0.2076811,96307.0,96305.0,0.002]
[1739016409371,0.07630845,96306.0,96305.0,0.002]
[1739016410869,0.24816485,96316.0,96305.0,0.002]
[1739016411074,0.18507677,96316.0,96306.0,0.57977013]
[1739016411274,0.18507677,96316.0,96312.0,0.207668]
[1739016411471,0.18507677,96316.0,96315.0,0.5684625]
[1739016411669,0.28018772,96325.0,96320.0,0.2076499]
[1739016412271,0.3608,96321.0,96308.0,0.00052]
[1739016412475,0.3608,96312.0,96306.0,0.002]
[1739016412675,0.2076781,96308.0,96306.0,0.002]
[1739016412874,0.2076781,96308.0,96306.0,0.001]
[1739016413387,0.2076781,96308.0,96306.0,0.01131735]
[1739016413880,0.34865045,96313.0,96309.0,0.2076754]
[1739016414089,0.13266002,96313.0,96301.0,1.50056]
[1739016414282,0.13266002,96313.0,96304.0,0.3714374]
[1739016414483,0.13266002,96313.0,96305.0,0.0696]
[1739016414784,0.13266002,96313.0,96311.0,0.2076701]
[1739016415086,0.13266002,96313.0,96312.0,0.1675]
[1739016416079,0.13266002,96313.0,96312.0,0.5283]
[1739016416279,0.40699386,96319.0,96312.0,0.5283]
[1739016416487,0.40699386,96319.0,96318.0,0.207656]
[1739016416681,0.31135969,96319.0,96318.0,0.207656]
[1739016419086,0.31135969,96319.0,96318.0,0.209656]
[1739016419287,0.31135969,96319.0,96318.0,0.01228157]
[1739016420491,0.31141323,96319.0,96318.0,0.21993757]
[1739016420988,0.24586323,96319.0,96318.0,0.01228157]
[1739016421182,0.34302725,96325.0,96318.0,0.01228157]
[1739016421384,0.34302725,96325.0,96323.0,0.2076449]
[1739016422687,0.34302725,96325.0,96323.0,0.2086449]
[1739016422888,0.3608,96332.0,96329.0,0.2076303]
[1739016423095,0.3608,96332.0,96323.0,0.002]
[1739016423294,0.3608,96332.0,96330.0,0.2076288]
[1739016423492,0.2076101,96340.0,96337.0,0.207615]
[1739016423796,0.2076101,96340.0,96338.0,0.3241]
[1739016424397,4e-05,96344.0,96338.0,0.3241]
[1739016425390,4e-05,96344.0,96338.0,0.3261]
[1739016426086,4e-05,96344.0,96338.0,0.3251]
[1739016426286,4e-05,96344.0,96338.0,0.3261]
[1739016426485,4e-05,96344.0,96338.0,0.33658921]
[1739016426695,4e-05,96344.0,96342.0,0.2076036]
[1739016427393,4e-05,96344.0,96338.0,0.17708921]
[1739016427598,4e-05,96344.0,96338.0,0.01148921]
[1739016427794,4e-05,96344.0,96338.0,0.01248921]
[1739016428288,4e-05,96344.0,96342.0,0.001]
[1739016428889,4e-05,96344.0,96338.0,0.01148921]
[1739016429091,4e-05,96344.0,96338.0,0.01248921]
[1739016429092,0.207603,96343.0,96338.0,0.01248921]
[1739016430384,4e-05,96344.0,96338.0,0.01148921]
[1739016430587,4e-05,96344.0,96342.0,0.001]
[1739016430997,4e-05,96344.0,96338.0,0.01048921]
[1739016431191,4e-05,96344.0,96342.0,0.001]
[1739016431788,4e-05,96344.0,96342.0,0.002]
[1739016431993,0.207641,96344.0,96342.0,0.001]
[1739016432599,0.3608,96343.0,96342.0,0.001]
[1739016432804,0.2076215,96334.0,96333.0,0.00015571]
[1739016433101,0.5684215,96334.0,96333.0,0.00015571]
[1739016434396,0.2076135,96338.0,96333.0,0.00115571]
[1739016434590,4e-05,96340.0,96333.0,0.36547831]
[1739016434895,4e-05,96340.0,96335.0,0.2076185]
[1739016435304,4e-05,96340.0,96334.0,1.5]
[1739016435604,4e-05,96340.0,96333.0,0.15885571]
[1739016436003,4e-05,96340.0,96333.0,0.15785571]
[1739016436311,4e-05,96340.0,96335.0,0.001]
[1739016437010,0.00204,96340.0,96335.0,0.001]
[1739016437403,0.00204,96340.0,96335.0,0.002]
[1739016437799,0.00204,96340.0,96335.0,0.001]
[1739016438504,0.00204,96340.0,96335.0,0.002]
[1739016440995,0.2,96350.0,96335.0,0.001]
[1739016441198,0.2,96350.0,96347.0,0.2075914]
[1739016441399,0.2,96350.0,96348.0,0.3382]
[1739016442205,0.201,96350.0,96348.0,0.3382]
[1739016442603,0.201,96350.0,96347.0,0.2075914]
[1739016442811,0.201,96350.0,96343.0,0.3608]
[1739016442812,0.2075997,96345.0,96343.0,0.3608]
[1739016442994,0.201,96350.0,96335.0,0.002]
[1739016443199,0.2076096,96340.0,96335.0,0.002]
[1739016443399,0.2076162,96337.0,96335.0,0.002]
[1739016443599,0.2076162,96337.0,96335.0,0.001]
[1739016444003,4e-05,96340.0,96331.0,0.1709]
[1739016444210,4e-05,96340.0,96325.0,0.3608]
[1739016444211,0.2076215,96334.0,96333.0,0.00015571]
[1739016445607,0.2086215,96334.0,96333.0,0.00015571]
[1739016445802,0.2086215,96334.0,96333.0,0.00115571]
[1739016452017,0.2086215,96334.0,96333.0,1.50115571]
[1739016452712,0.2086215,96334.0,96333.0,0.00115571]
[1739016455925,0.001,96334.0,96333.0,0.00115571]
[1739016465738,0.001,96334.0,96322.0,0.00155727]
[1739016466141,4e-05,96327.0,96322.0,0.00155727]
[1739016466931,0.2076452,96323.0,96322.0,0.00155727]
[1739016467143,0.2076452,96323.0,96322.0,0.01213207]
[1739016467332,0.2076452,96323.0,96322.0,0.00155727]
[1739016467533,0.2076452,96323.0,96322.0,0.00255727]
[1739016468238,0.207656,96318.0,96317.0,0.01035384]
[1739016468435,0.207656,96318.0,96315.0,0.00015571]
[1739016468436,0.2076603,96316.0,96315.0,0.00015571]
[1739016468740,0.20767,96312.0,96304.0,4e-05]
[1739016468932,0.2076774,96309.0,96304.0,4e-05]
[1739016469134,0.2077174,96309.0,96304.0,4e-05]
[1739016469335,4e-05,96309.0,96304.0,4e-05]
[1739016469541,0.207679,96308.0,96304.0,4e-05]
[1739016470836,0.210679,96308.0,96304.0,0.01024894]
[1739016471040,0.210679,96308.0,96304.0,4e-05]
[1739016471634,0.004,96308.0,96304.0,4e-05]
[1739016471834,0.2076825,96306.0,96304.0,4e-05]
[1739016472939,0.2096825,96306.0,96304.0,4e-05]
[1739016473847,0.2096825,96306.0,96305.0,1.5]
[1739016474234,0.2106825,96306.0,96305.0,1.5]
[1739016474745,0.2106825,96306.0,96304.0,4e-05]
[1739016475245,0.2096825,96306.0,96304.0,4e-05]
[1739016475443,0.2086825,96306.0,96304.0,4e-05]
[1739016475637,0.2106825,96306.0,96304.0,4e-05]
[1739016476451,0.20763,96331.0,96323.0,0.2076445]
[1739016476739,0.20763,96331.0,96305.0,0.4828009]
[1739016476740,0.06954953,96329.0,96324.0,0.3136]
[1739016477045,0.2076176,96336.0,96324.0,0.3136]
[1739016477443,0.2076176,96336.0,96325.0,0.2076392]
[1739016477944,0.2076176,96336.0,96324.0,0.3136]
[1739016477945,0.2076176,96336.0,96327.0,0.2076359]
[1739016478134,0.2086176,96336.0,96327.0,0.2076359]
[1739016480636,0.2086176,96336.0,96327.0,0.2086359]
[1739016481041,0.2076176,96336.0,96327.0,0.21892667]
[1739016482241,0.3608,96338.0,96327.0,0.01129077]
[1739016482436,0.2076222,96334.0,96327.0,0.01129077]
[1739016483446,0.2076222,96334.0,96327.0,0.01029077]
[1739016483649,0.2076222,96334.0,96327.0,0.001]
[1739016484943,0.3608,96332.0,96327.0,0.001]
[1739016485137,0.2076286,96331.0,96327.0,0.001]
[1739016486851,0.2076286,96331.0,96325.0,0.17549087]
[1739016487041,0.2076286,96331.0,96327.0,0.001]
[1739016487236,4e-05,96329.0,96327.0,0.001]
[1739016487449,0.1976686,96331.0,96327.0,0.001]
[1739016488451,0.1976686,96331.0,96325.0,0.17549087]
[1739016488651,0.1976686,96331.0,96325.0,0.17649087]
[1739016489352,0.2076353,96328.0,96327.0,0.001]
[1739016489851,0.1559353,96328.0,96327.0,0.001]
[1739016490047,0.1583,96331.0,96325.0,0.01049087]
[1739016490244,0.207638,96327.0,96325.0,0.001]
[1739016491844,0.3608,96329.0,96324.0,0.1595]
[1739016492047,0.2076409,96325.0,96324.0,0.1595]
[1739016493051,0.2076469,96323.0,96320.0,0.00015571]
[1739016493355,0.2076479,96322.0,96320.0,0.0107095]
[1739016493560,0.2076479,96322.0,96320.0,0.00015571]
[1739016494755,0.2076496,96321.0,96320.0,0.00015571]
[1739016497052,4e-05,96327.0,96320.0,0.00015571]
[1739016497259,0.2076445,96324.0,96321.0,0.2076487]
[1739016497459,0.2076474,96322.0,96320.0,0.00015571]
[1739016497656,0.3608,96321.0,96320.0,0.00015571]
[1739016505154,0.20035383,96329.0,96323.0,0.2076447]
[1739016505354,0.20035383,96329.0,96324.0,0.1564]
[1739016505865,0.20035383,96329.0,96326.0,0.2076378]
[1739016506054,0.11174334,96338.0,96330.0,0.2076301]
[1739016506254,0.11174334,96338.0,96331.0,0.1645]
[1739016506656,0.27727734,96340.0,96331.0,0.1645]
[1739016506857,0.20776454,96340.0,96331.0,0.1645]
[1739016509261,0.20776454,96340.0,96331.0,0.1655]
[1739016509566,0.20776454,96340.0,96331.0,0.1665]
[1739016510453,0.20776454,96340.0,96331.0,0.17687112]
[1739016510871,0.20776454,96340.0,96331.0,0.38449892]
[1739016512870,0.2076109,96339.0,96331.0,0.38449892]
[1739016513367,0.00015544,96340.0,96331.0,0.17687112]
[1739016514263,0.00015544,96340.0,96331.0,0.01237112]
[1739016514460,0.2076243,96333.0,96331.0,0.01237112]
[1739016514865,0.3608,96332.0,96331.0,0.01237112]
[1739016515063,0.3608,96332.0,96331.0,0.001]
[1739016515257,0.3608,96332.0,96331.0,0.002]
[1739016515754,0.3608,96332.0,96320.0,0.00015571]
[1739016515957,0.5684258,96332.0,96331.0,0.001]
[1739016518071,0.5694258,96332.0,96331.0,0.001]
[1739016520469,0.66505682,96332.0,96331.0,0.001]
[1739016521569,0.2076496,96321.0,96320.0,0.0106149]
[1739016522770,0.2086496,96321.0,96320.0,0.0106149]
[1739016529573,0.2086496,96321.0,96320.0,0.00015571]
[1739016531369,0.2076727,96311.0,96303.0,0.1541]
[1739016531873,0.2076754,96309.0,96303.0,0.1541]
[1739016532074,0.2076754,96309.0,96308.0,0.37102262]
[1739016532462,0.2076754,96309.0,96308.0,0.37302262]
[1739016532877,0.2076754,96309.0,96308.0,0.37402262]
[1739016533363,0.2076754,96309.0,96308.0,0.37502262]
[1739016533976,0.2076754,96309.0,96308.0,0.37602262]
[1739016538482,0.2076754,96309.0,96308.0,0.01522262]
[1739016540684,0.3608,96310.0,96289.0,0.1535]
[1739016540871,0.2076948,96300.0,96290.0,0.1539]
[1739016541070,0.2076948,96300.0,96290.0,0.25337013]
[1739016541378,0.2076948,96300.0,96290.0,0.1539]
[1739016542083,0.2076948,96300.0,96299.0,0.01074023]
[1739016542482,0.2076948,96300.0,96299.0,0.00015571]
[1739016544387,0.2772148,96300.0,96299.0,0.00015571]
[1739016545986,0.6380148,96300.0,96299.0,0.00015571]
[1739016546686,0.2772148,96300.0,96299.0,0.00015571]
[1739016546881,0.6380148,96300.0,96299.0,0.00015571]
[1739016547481,0.6420148,96300.0,96299.0,0.00115571]
[1739016547988,0.6450148,96300.0,96299.0,0.00215571]
[1739016548183,0.2077186,96289.0,96278.0,0.3194]
[1739016548374,0.5685186,96289.0,96278.0,0.3194]
[1739016548581,0.2077401,96279.0,96278.0,0.3194]
[1739016548881,0.2077627,96269.0,96262.0,0.1579]
[1739016549072,0.2077627,96269.0,96263.0,0.166]
[1739016549278,0.2077627,96269.0,96264.0,1.5]
[1739016549579,4e-05,96272.0,96264.0,1.5]
[1739016549986,4e-05,96272.0,96271.0,0.0002]
[1739016551387,4e-05,96272.0,96271.0,0.0042]
[1739016559699,0.00204,96272.0,96271.0,0.0022]
[1739016560294,0.00604,96272.0,96271.0,0.0002]
[1739016566696,0.2077725,96264.0,96263.0,0.166]
[1739016567096,0.2078125,96264.0,96263.0,0.166]
[1739016569099,0.2078125,96264.0,96263.0,0.167]
[1739016574495,0.2078125,96264.0,96263.0,0.001]
[1739016578103,0.28415237,96264.0,96263.0,0.001]
[1739016582293,0.07637987,96264.0,96263.0,0.001]
[1739016585504,4e-05,96264.0,96263.0,0.001]
[1739016593311,0.07637861,96264.0,96263.0,0.001]
[1739016602710,4e-05,96264.0,96263.0,0.001]
[1739016603817,0.36084,96264.0,96263.0,0.001]
[1739016605215,4e-05,96264.0,96263.0,0.001]
[1739016606722,0.00504,96264.0,96262.0,0.01042555]
[1739016607016,0.2077791,96261.0,96258.0,0.00155829]
[1739016607316,4e-05,96259.0,96258.0,0.00155829]
[1739016608018,4e-05,96259.0,96258.0,0.01211265]
[1739016608218,4e-05,96259.0,96258.0,0.00155829]
[1739016609322,0.00204,96259.0,96258.0,0.00155829]
[1739016609613,0.00504,96259.0,96258.0,0.00155829]
[1739016611521,0.0813815,96259.0,96258.0,0.00155829]
[1739016614714,0.2891648,96259.0,96258.0,0.00155829]
[1739016616812,0.2128233,96259.0,96258.0,0.00155829]
[1739016619717,0.00504,96259.0,96258.0,0.36235829]
[1739016620423,0.24938062,96268.0,96258.0,0.36235829]
[1739016620424,0.15928012,96268.0,96266.0,0.2077663]
[1739016620627,0.28053364,96275.0,96267.0,0.6777]
[1739016620815,0.28053364,96275.0,96268.0,0.164]
[1739016621016,0.28053364,96275.0,96272.0,0.2077541]
[1739016622122,0.28253364,96275.0,96272.0,0.2077541]
[1739016622522,0.28053364,96275.0,96272.0,0.2077541]
[1739016622721,0.28453364,96275.0,96272.0,0.2097541]
[1739016623629,0.07632263,96274.0,96272.0,0.2097541]
[1739016623815,0.07632263,96274.0,96272.0,0.002]
[1739016625027,0.07632263,96274.0,96272.0,0.01120856]
[1739016625222,0.2077531,96273.0,96272.0,0.01220856]
[1739016626321,0.2077531,96273.0,96272.0,0.01120856]
[1739016626521,0.2097531,96273.0,96272.0,0.01220856]
[1739016626729,0.2117531,96273.0,96272.0,0.01220856]
[1739016627132,0.2117531,96273.0,96272.0,0.002]
[1739016628724,0.28808778,96273.0,96272.0,0.002]
[1739016631328,0.2117531,96273.0,96272.0,0.002]
[1739016632130,0.2077831,96260.0,96258.0,0.00155829]
[1739016632319,0.2077831,96260.0,96258.0,0.01188494]
[1739016633220,0.2097831,96260.0,96258.0,0.00155829]
[1739016633533,0.2077876,96257.0,96256.0,1e-08]
[1739016635218,0.20782,96242.0,96241.0,0.01042387]
[1739016635418,0.20782,96242.0,96238.0,0.3608]
[1739016635419,0.2078265,96239.0,96238.0,0.3608]
[1739016636025,0.1676,96246.0,96221.0,1.50211877]
[1739016636228,0.2078549,96226.0,96221.0,1.50155877]
[1739016636429,0.2078549,96226.0,96224.0,0.0001558]
[1739016637734,0.2078549,96226.0,96224.0,0.0041558]
[1739016638233,0.2078549,96226.0,96224.0,0.0091558]
[1739016639734,0.2078549,96226.0,96224.0,0.0051558]
[1739016641323,0.001,96226.0,96224.0,0.0001558]
[1739016641927,0.001,96226.0,96225.0,1.5]
[1739016642530,0.43036,96239.0,96225.0,1.5]
[1739016642731,0.001,96226.0,96225.0,1.5]
[1739016648441,0.0001558,96243.0,96233.0,0.207838]
[1739016648633,0.0001558,96243.0,96237.0,0.3608]
[1739016648943,0.0001558,96243.0,96240.0,0.2078235]
[1739016649536,0.0041558,96243.0,96240.0,0.2078235]
[1739016650038,0.0071558,96243.0,96240.0,0.2078235]
[1739016650731,0.0071558,96243.0,96241.0,0.2078208]
[1739016650934,0.0031558,96243.0,96241.0,0.2078208]
[1739016651134,0.0061558,96243.0,96241.0,0.2078208]
[1739016651843,0.0051558,96243.0,96241.0,0.2088208]
[1739016652742,0.0021558,96243.0,96241.0,0.2088208]
[1739016652944,0.0051558,96243.0,96241.0,0.2088208]
[1739016653337,0.0051558,96243.0,96242.0,1.5]
[1739016654345,0.0021558,96243.0,96242.0,1.5]
[1739016654646,0.0061558,96243.0,96242.0,1.501]
[1739016660143,0.0061558,96243.0,96242.0,0.001]
[1739016664949,0.0061558,96243.0,96242.0,0.3618]
[1739016666349,0.0061558,96243.0,96242.0,0.001]
[1739016671054,0.08250924,96243.0,96242.0,0.001]
[1739016677056,0.0061558,96243.0,96242.0,0.001]
[1739016689063,0.0061558,96243.0,96242.0,0.3618]
[1739016694779,0.2139736,96243.0,96242.0,0.3618]
[1739016695776,0.2139736,96243.0,96242.0,0.001]
[1739016698483,0.29032816,96243.0,96242.0,0.001]
[1739016705990,0.2139736,96243.0,96242.0,0.001]